[Event "Elitserien 2019/2020, round 7-9"]
[Site "Elite stadshotellet, Kungsgatan 6, Vaxjo, Sweden"]
[Date "2020.10.18"]
[Round "3.4"]
[White "Gajic, Mladen"]
[Black "Linusson, Pelle"]
[Result "1-0"]
[TimeControl "90 minutes for 40 moves + 30 minutes for the rest of the game + 30 seconds per move from move one."]
[WhiteTitle "FM"]
[WhiteFideId "1709178"]
[BlackFideId "1709062"]
[WhiteElo "2295"]
[BlackElo "2249"]

1. e4 {[%clk 01:21:48]} {[%emt 00:09:11]} e5 {[%clk 01:29:53]} {[%emt
00:01:08]} 2. Nc3 {[%clk 01:21:57]} {[%emt 00:00:21]} Nf6 {[%clk 01:29:46]}
{[%emt 00:00:36]} 3. f4 {[%clk 01:18:19]} {[%emt 00:04:08]} d5 {[%clk
01:30:10]} {[%emt 00:00:07]} 4. fxe5 {[%clk 01:18:43]} {[%emt 00:00:06]} Nxe4
{[%clk 01:30:33]} {[%emt 00:00:06]} 5. Qf3 {[%clk 01:18:59]} {[%emt 00:00:14]}
Nc6 {[%clk 01:24:44]} {[%emt 00:06:20]} 6. Bb5 {[%clk 01:19:19]} {[%emt
00:00:09]} Nxc3 {[%clk 01:19:20]} {[%emt 00:05:54]} 7. dxc3 {[%clk 01:16:09]}
{[%emt 00:03:40]} Qh4+ {[%clk 01:16:54]} {[%emt 00:02:56]} 8. g3 {[%clk
01:16:20]} {[%emt 00:00:20]} Qe4+ {[%clk 01:17:19]} {[%emt 00:00:04]} 9. Qxe4
{[%clk 01:16:48]} {[%emt 00:00:03]} dxe4 {[%clk 01:17:40]} {[%emt 00:00:09]} 10.
Bxc6+ {[%clk 01:16:59]} {[%emt 00:00:19]} bxc6 {[%clk 01:17:40]} {[%emt
00:00:30]} 11. Ne2 {[%clk 01:17:26]} {[%emt 00:00:03]} Ba6 {[%clk 00:54:54]}
{[%emt 00:23:16]} 12. Rf1 {[%clk 01:06:22]} {[%emt 00:11:32]} c5 {[%clk
00:48:52]} {[%emt 00:06:34]} 13. Rf4 {[%clk 01:02:57]} {[%emt 00:03:55]} Be7
{[%clk 00:32:23]} {[%emt 00:16:59]} 14. Rxe4 {[%clk 01:00:43]} {[%emt
00:02:43]} O-O {[%clk 00:31:15]} {[%emt 00:01:39]} 15. Ra4 {[%clk 00:51:45]}
{[%emt 00:09:27]} Bb5 {[%clk 00:23:04]} {[%emt 00:08:41]} 16. Ra5 {[%clk
00:49:38]} {[%emt 00:02:36]} c6 {[%clk 00:18:34]} {[%emt 00:05:02]} 17. a4
{[%clk 00:45:41]} {[%emt 00:04:27]} Bxe2 {[%clk 00:17:26]} {[%emt 00:01:37]} 18.
Kxe2 {[%clk 00:46:04]} {[%emt 00:00:07]} a6 {[%clk 00:17:45]} {[%emt 00:00:12]}
19. Be3 {[%clk 00:42:07]} {[%emt 00:04:26]} Rfe8 {[%clk 00:16:32]} {[%emt
00:01:44]} 20. Rd1 {[%clk 00:31:17]} {[%emt 00:11:18]} Bf8 {[%clk 00:07:32]}
{[%emt 00:09:31]} 21. Kf3 {[%clk 00:31:13]} {[%emt 00:00:33]} Rxe5 {[%clk
00:07:08]} {[%emt 00:00:55]} 22. b4 {[%clk 00:31:07]} {[%emt 00:00:36]} Rf5+
{[%clk 00:07:09]} {[%emt 00:00:30]} 23. Kg4 {[%clk 00:29:44]} {[%emt 00:01:51]}
g6 {[%clk 00:07:25]} {[%emt 00:00:16]} 24. b5 {[%clk 00:26:14]} {[%emt
00:04:00]} cxb5 {[%clk 00:05:30]} {[%emt 00:02:25]} 25. axb5 {[%clk 00:24:50]}
{[%emt 00:01:54]} c4 {[%clk 00:04:46]} {[%emt 00:01:13]} 26. Rda1 {[%clk
00:23:54]} {[%emt 00:01:26]} Re5 {[%clk 00:00:38]} {[%emt 00:04:39]} 27. Bd4
{[%clk 00:23:53]} {[%emt 00:00:31]} Ree8 {[%clk 00:00:35]} {[%emt 00:00:32]} 28.
bxa6 {[%clk 00:23:31]} {[%emt 00:00:52]} Bg7 {[%clk 00:00:54]} {[%emt
00:00:11]} 29. Kf3 {[%clk 00:21:48]} {[%emt 00:02:13]} Red8 {[%clk 00:00:55]}
{[%emt 00:00:29]} 30. Rb1 {[%clk 00:18:49]} {[%emt 00:03:28]} Bxd4 {[%clk
00:00:40]} {[%emt 00:00:46]} 31. cxd4 {[%clk 00:19:19]} Rxd4 {[%clk 00:00:40]}
{[%emt 00:00:30]} 32. a7 {[%clk 00:19:43]} {[%emt 00:00:04]} Rdd8 {[%clk
00:01:07]} {[%emt 00:00:04]} 33. Rb7 {[%clk 00:20:06]} {[%emt 00:00:07]} Rdc8
{[%clk 00:00:40]} {[%emt 00:00:58]} 34. Rab5 {[%clk 00:19:55]} 1-0

[Event "Elitserien 2019/2020, round 7-9"]
[Site "Elite stadshotellet, Kungsgatan 6, Vaxjo, Sweden"]
[Date "2020.10.18"]
[Round "3.5"]
[White "Fraenkel, Mikael"]
[Black "Rothen, Hakan"]
[Result "0-1"]
[TimeControl "90 minutes for 40 moves + 30 minutes for the rest of the game + 30 seconds per move from move one."]
[BlackTitle "FM"]
[WhiteFideId "1706985"]
[BlackFideId "1700723"]
[WhiteElo "2045"]
[BlackElo "2252"]

1. e4 {[%clk 01:30:50]} {[%emt 00:00:09]} e6 {[%clk 01:27:48]} {[%emt
00:03:12]} 2. d3 {[%clk 01:31:02]} {[%emt 00:00:18]} d5 {[%clk 01:27:50]}
{[%emt 00:00:28]} 3. Nd2 {[%clk 01:31:26]} {[%emt 00:00:06]} Nf6 {[%clk
01:27:20]} {[%emt 00:01:00]} 4. Ngf3 {[%clk 01:31:45]} {[%emt 00:00:11]} g6
{[%clk 01:27:12]} {[%emt 00:00:38]} 5. g3 {[%clk 01:32:08]} {[%emt 00:00:06]}
Bg7 {[%clk 01:27:30]} {[%emt 00:00:12]} 6. Bg2 {[%clk 01:32:33]} {[%emt
00:00:05]} O-O {[%clk 01:27:41]} {[%emt 00:00:19]} 7. O-O {[%clk 01:32:58]}
{[%emt 00:00:05]} c5 {[%clk 01:27:30]} {[%emt 00:00:41]} 8. Re1 {[%clk
01:33:19]} {[%emt 00:00:10]} Nc6 {[%clk 01:24:11]} {[%emt 00:03:49]} 9. h4
{[%clk 01:33:30]} {[%emt 00:00:19]} dxe4 {[%clk 01:21:27]} {[%emt 00:03:13]} 10.
dxe4 {[%clk 01:33:53]} {[%emt 00:00:07]} Ng4 {[%clk 01:14:27]} {[%emt
00:07:30]} 11. a4 {[%clk 01:32:14]} {[%emt 00:02:08]} e5 {[%clk 01:10:12]}
{[%emt 00:04:45]} 12. Nc4 {[%clk 01:31:33]} {[%emt 00:01:11]} Qxd1 {[%clk
01:01:24]} {[%emt 00:09:18]} 13. Rxd1 {[%clk 01:31:56]} {[%emt 00:00:07]} Be6
{[%clk 00:59:00]} {[%emt 00:02:55]} 14. Ne3 {[%clk 01:30:05]} {[%emt 00:02:21]}
Nxe3 {[%clk 00:50:25]} {[%emt 00:09:05]} 15. Bxe3 {[%clk 01:30:26]} {[%emt
00:00:09]} Nd4 {[%clk 00:50:22]} {[%emt 00:00:33]} 16. Ng5 {[%clk 01:26:10]}
{[%emt 00:04:46]} Bg4 {[%clk 00:45:46]} {[%emt 00:05:05]} 17. Rd2 {[%clk
01:23:44]} {[%emt 00:02:57]} h6 {[%clk 00:44:01]} {[%emt 00:02:15]} 18. Bxd4
{[%clk 01:19:48]} {[%emt 00:04:27]} cxd4 {[%clk 00:44:03]} {[%emt 00:00:29]} 19.
Nh3 {[%clk 01:19:48]} {[%emt 00:00:29]} Rac8 {[%clk 00:43:48]} {[%emt
00:00:44]} 20. f3 {[%clk 01:19:51]} {[%emt 00:00:27]} Be6 {[%clk 00:39:15]}
{[%emt 00:05:03]} 21. Nf2 {[%clk 01:19:42]} {[%emt 00:00:40]} Rc7 {[%clk
00:38:57]} {[%emt 00:00:48]} 22. Bf1 {[%clk 01:18:25]} {[%emt 00:01:47]} Rfc8
{[%clk 00:36:58]} {[%emt 00:02:28]} 23. Bd3 {[%clk 01:17:53]} {[%emt 00:01:03]}
h5 {[%clk 00:37:05]} {[%emt 00:00:23]} 24. g4 {[%clk 01:16:51]} {[%emt
00:01:31]} hxg4 {[%clk 00:35:53]} {[%emt 00:01:42]} 25. fxg4 {[%clk 01:17:15]}
{[%emt 00:00:06]} Bf6 {[%clk 00:36:12]} {[%emt 00:00:10]} 26. g5 {[%clk
01:17:25]} {[%emt 00:00:21]} Be7 {[%clk 00:36:36]} {[%emt 00:00:05]} 27. Kg2
{[%clk 01:17:24]} {[%emt 00:00:32]} f6 {[%clk 00:32:54]} {[%emt 00:04:13]} 28.
gxf6 {[%clk 01:15:05]} {[%emt 00:02:49]} Bxf6 {[%clk 00:33:21]} {[%emt
00:00:03]} 29. Kg3 {[%clk 01:15:21]} {[%emt 00:00:14]} Rh7 {[%clk 00:33:34]}
{[%emt 00:00:17]} 30. Rh1 {[%clk 01:14:54]} {[%emt 00:00:57]} Rf8 {[%clk
00:29:15]} {[%emt 00:04:49]} 31. Be2 {[%clk 01:09:16]} {[%emt 00:06:09]} Bxh4+
{[%clk 00:27:15]} {[%emt 00:02:31]} 32. Rxh4 {[%clk 01:08:11]} {[%emt
00:01:35]} Rxh4 {[%clk 00:27:32]} {[%emt 00:00:13]} 33. Kxh4 {[%clk 01:08:36]}
{[%emt 00:00:04]} Rxf2 {[%clk 00:27:52]} {[%emt 00:00:09]} 34. Kg3 {[%clk
01:08:33]} {[%emt 00:00:33]} Rf7 {[%clk 00:23:49]} {[%emt 00:04:32]} 35. b3
{[%clk 01:08:07]} {[%emt 00:00:57]} Kg7 {[%clk 00:23:13]} {[%emt 00:01:07]} 36.
Bf3 {[%clk 01:07:22]} {[%emt 00:01:14]} a5 {[%clk 00:20:27]} {[%emt 00:03:16]}
37. Rg2 {[%clk 01:06:26]} {[%emt 00:01:27]} Rd7 {[%clk 00:19:20]} {[%emt
00:01:36]} 38. Rd2 {[%clk 01:05:31]} {[%emt 00:01:24]} Rc7 {[%clk 00:18:53]}
{[%emt 00:00:57]} 39. Be2 {[%clk 01:04:36]} {[%emt 00:01:25]} Kf6 {[%clk
00:17:23]} {[%emt 00:02:00]} 40. Bd3 {[%clk 01:04:30]} {[%emt 00:00:36]} Kg5
{[%clk 00:17:05]} {[%emt 00:00:49]} 41. Rh2 {[%clk 01:04:39]} {[%emt 00:00:21]}
Rc3 {[%clk 00:14:18]} {[%emt 00:03:16]} 42. Rd2 {[%clk 01:03:46]} {[%emt
00:01:23]} Bg4 {[%clk 00:08:55]} {[%emt 00:05:53]} 43. Rf2 {[%clk 01:03:28]}
{[%emt 00:00:49]} Bd1 {[%clk 00:08:42]} {[%emt 00:00:43]} 44. Rd2 {[%clk
01:03:34]} {[%emt 00:00:24]} Bxc2 {[%clk 00:07:44]} {[%emt 00:01:28]} 0-1

[Event "Elitserien 2019/2020, round 7-9"]
[Site "Elite stadshotellet, Kungsgatan 6, Vaxjo, Sweden"]
[Date "2020.10.18"]
[Round "3.6"]
[White "Ornstein, Axel"]
[Black "Larsson, Victor"]
[Result "1/2-1/2"]
[TimeControl "90 minutes for 40 moves + 30 minutes for the rest of the game + 30 seconds per move from move one."]
[WhiteTitle "IM"]
[WhiteFideId "1700111"]
[BlackFideId "1707019"]
[WhiteElo "2284"]
[BlackElo "2186"]

1. d4 {[%clk 01:29:29]} {[%emt 00:01:30]} d5 {[%clk 01:30:56]} {[%emt
00:00:04]} 2. c4 {[%clk 01:29:25]} {[%emt 00:00:34]} e6 {[%clk 01:31:24]}
{[%emt 00:00:02]} 3. Nc3 {[%clk 01:29:28]} {[%emt 00:00:27]} Be7 {[%clk
01:31:32]} {[%emt 00:00:22]} 4. Bf4 {[%clk 01:26:38]} {[%emt 00:03:20]} Nf6
{[%clk 01:31:52]} {[%emt 00:00:11]} 5. e3 {[%clk 01:27:03]} {[%emt 00:00:05]}
O-O {[%clk 01:32:17]} {[%emt 00:00:04]} 6. h3 {[%clk 01:24:06]} {[%emt
00:03:27]} Nbd7 {[%clk 01:30:18]} {[%emt 00:02:30]} 7. Nf3 {[%clk 01:24:28]}
{[%emt 00:00:07]} c5 {[%clk 01:30:38]} {[%emt 00:00:11]} 8. cxd5 {[%clk
01:20:31]} {[%emt 00:04:27]} Nxd5 {[%clk 01:29:00]} {[%emt 00:02:08]} 9. Nxd5
{[%clk 01:20:53]} {[%emt 00:00:07]} exd5 {[%clk 01:29:28]} {[%emt 00:00:03]} 10.
Be2 {[%clk 01:18:01]} {[%emt 00:03:22]} cxd4 {[%clk 01:04:20]} {[%emt
00:25:38]} 11. exd4 {[%clk 01:08:49]} {[%emt 00:09:42]} Qa5+ {[%clk 01:03:05]}
{[%emt 00:01:44]} 1/2-1/2

[Event "Elitserien 2019/2020, round 7-9"]
[Site "Elite stadshotellet, Kungsgatan 6, Vaxjo, Sweden"]
[Date "2020.10.18"]
[Round "3.7"]
[White "Akerman, Emil"]
[Black "Malesevic, Nedeljko"]
[Result "0-1"]
[TimeControl "90 minutes for 40 moves + 30 minutes for the rest of the game + 30 seconds per move from move one."]
[BlackTitle "FM"]
[WhiteFideId "1715828"]
[BlackFideId "1703447"]
[WhiteElo "1964"]
[BlackElo "2257"]

1. c4 {[%clk 01:30:56]} {[%emt 00:00:04]} c5 {[%clk 01:29:01]} {[%emt
00:01:59]} 2. Nf3 {[%clk 01:31:18]} {[%emt 00:00:09]} Nc6 {[%clk 01:28:20]}
{[%emt 00:01:10]} 3. g3 {[%clk 01:30:22]} {[%emt 00:01:27]} Nf6 {[%clk
01:28:39]} {[%emt 00:00:11]} 4. Nc3 {[%clk 01:30:37]} {[%emt 00:00:15]} d5
{[%clk 01:28:10]} {[%emt 00:00:59]} 5. cxd5 {[%clk 01:30:32]} {[%emt 00:00:35]}
Nxd5 {[%clk 01:28:32]} {[%emt 00:00:08]} 6. Bg2 {[%clk 01:30:35]} {[%emt
00:00:27]} Nc7 {[%clk 01:28:48]} {[%emt 00:00:12]} 7. O-O {[%clk 01:30:25]}
{[%emt 00:00:41]} e5 {[%clk 01:28:45]} {[%emt 00:00:32]} 8. d3 {[%clk
01:29:19]} {[%emt 00:01:37]} Be7 {[%clk 01:29:05]} {[%emt 00:00:10]} 9. Be3
{[%clk 01:22:29]} {[%emt 00:07:21]} O-O {[%clk 01:24:13]} {[%emt 00:05:21]} 10.
Na4 {[%clk 01:18:04]} {[%emt 00:04:55]} b6 {[%clk 01:13:40]} {[%emt 00:11:02]}
11. b4 {[%clk 00:57:27]} {[%emt 00:21:08]} e4 {[%clk 01:03:42]} {[%emt
00:10:28]} 12. Nd2 {[%clk 00:49:35]} {[%emt 00:08:22]} Nxb4 {[%clk 01:02:29]}
{[%emt 00:01:43]} 13. dxe4 {[%clk 00:46:13]} {[%emt 00:03:53]} Bb7 {[%clk
00:50:04]} {[%emt 00:12:54]} 14. a3 {[%clk 00:44:59]} {[%emt 00:01:45]} Nc6
{[%clk 00:49:15]} {[%emt 00:01:18]} 15. Rb1 {[%clk 00:36:19]} {[%emt 00:09:10]}
Nd4 {[%clk 00:43:55]} {[%emt 00:05:49]} 16. Nb3 {[%clk 00:36:29]} {[%emt
00:00:20]} Ndb5 {[%clk 00:39:00]} {[%emt 00:05:24]} 17. Qc1 {[%clk 00:31:53]}
{[%emt 00:05:06]} c4 {[%clk 00:33:22]} {[%emt 00:06:09]} 18. Nd2 {[%clk
00:24:29]} {[%emt 00:07:54]} Nxa3 {[%clk 00:26:47]} {[%emt 00:07:04]} 19. Ra1
{[%clk 00:24:15]} {[%emt 00:00:46]} Ncb5 {[%clk 00:23:22]} {[%emt 00:03:54]} 20.
Qb2 {[%clk 00:18:40]} {[%emt 00:06:05]} Bf6 {[%clk 00:16:16]} {[%emt 00:07:36]}
21. e5 {[%clk 00:18:38]} {[%emt 00:00:31]} Bxg2 {[%clk 00:16:08]} {[%emt
00:00:38]} 22. exf6 {[%clk 00:18:11]} {[%emt 00:00:57]} Bxf1 {[%clk 00:12:54]}
{[%emt 00:03:44]} 23. fxg7 {[%clk 00:18:09]} {[%emt 00:00:32]} Re8 {[%clk
00:12:35]} {[%emt 00:00:48]} 24. Kxf1 {[%clk 00:17:24]} {[%emt 00:01:17]} Rxe3
{[%clk 00:09:47]} {[%emt 00:03:17]} 25. fxe3 {[%clk 00:17:40]} {[%emt
00:00:15]} c3 {[%clk 00:10:06]} {[%emt 00:00:10]} 26. Nxc3 {[%clk 00:16:56]}
{[%emt 00:01:15]} Qf6+ {[%clk 00:09:51]} {[%emt 00:00:44]} 27. Nf3 {[%clk
00:17:14]} {[%emt 00:00:12]} Rc8 {[%clk 00:07:13]} {[%emt 00:03:08]} 28. Rxa3
{[%clk 00:16:31]} {[%emt 00:01:13]} Nxa3 {[%clk 00:07:10]} {[%emt 00:00:34]} 29.
Qxa3 {[%clk 00:16:53]} {[%emt 00:00:08]} Qxc3 {[%clk 00:07:21]} {[%emt
00:00:18]} 30. Qxa7 {[%clk 00:16:26]} {[%emt 00:00:57]} Qxe3 {[%clk 00:07:24]}
{[%emt 00:00:28]} 31. Qa6 {[%clk 00:13:10]} {[%emt 00:03:46]} Rc1+ {[%clk
00:06:11]} {[%emt 00:01:42]} 32. Kg2 {[%clk 00:13:34]} {[%emt 00:00:06]} Rc2
{[%clk 00:05:18]} {[%emt 00:01:23]} 33. Kf1 {[%clk 00:11:16]} {[%emt 00:02:48]}
Kxg7 {[%clk 00:04:26]} {[%emt 00:01:22]} 34. Nh4 {[%clk 00:11:32]} {[%emt
00:00:14]} Rc1+ {[%clk 00:03:50]} {[%emt 00:01:06]} 35. Kg2 {[%clk 00:11:52]}
{[%emt 00:00:11]} Rg1+ {[%clk 00:03:33]} {[%emt 00:00:46]} 0-1

[Event "Elitserien 2019/2020, round 7-9"]
[Site "Elite stadshotellet, Kungsgatan 6, Vaxjo, Sweden"]
[Date "2020.10.18"]
[Round "3.8"]
[White "Gustafsson, Fredrik"]
[Black "Andersson, Bjorn"]
[Result "1-0"]
[TimeControl "90 minutes for 40 moves + 30 minutes for the rest of the game + 30 seconds per move from move one."]
[BlackTitle "FM"]
[WhiteFideId "1712357"]
[BlackFideId "1702114"]
[WhiteElo "2089"]
[BlackElo "2153"]

1. e4 {[%clk 01:30:53]} {[%emt 00:00:06]} c5 {[%clk 01:30:54]} {[%emt
00:00:06]} 2. Nc3 {[%clk 01:31:10]} {[%emt 00:00:13]} Nc6 {[%clk 01:31:18]}
{[%emt 00:00:07]} 3. g3 {[%clk 01:31:35]} {[%emt 00:00:04]} g6 {[%clk
01:29:54]} {[%emt 00:01:54]} 4. Bg2 {[%clk 01:31:58]} {[%emt 00:00:06]} Bg7
{[%clk 01:30:19]} {[%emt 00:00:06]} 5. d3 {[%clk 01:32:23]} {[%emt 00:00:04]}
d6 {[%clk 01:30:12]} {[%emt 00:00:36]} 6. Be3 {[%clk 01:32:39]} {[%emt
00:00:14]} Bd7 {[%clk 01:29:40]} {[%emt 00:01:03]} 7. Qd2 {[%clk 01:32:27]}
{[%emt 00:00:42]} Rb8 {[%clk 01:30:01]} {[%emt 00:00:10]} 8. Nd1 {[%clk
01:22:39]} {[%emt 00:10:17]} Qc8 {[%clk 01:26:10]} {[%emt 00:04:21]} 9. c3
{[%clk 01:20:12]} {[%emt 00:02:58]} h5 {[%clk 01:26:17]} {[%emt 00:00:23]} 10.
h3 {[%clk 01:15:08]} {[%emt 00:05:34]} b5 {[%clk 01:22:31]} {[%emt 00:04:17]}
11. f4 {[%clk 01:01:32]} {[%emt 00:14:06]} b4 {[%clk 01:14:21]} {[%emt
00:08:40]} 12. Nf3 {[%clk 01:00:32]} {[%emt 00:01:30]} e5 {[%clk 01:11:08]}
{[%emt 00:03:43]} 13. fxe5 {[%clk 00:54:16]} {[%emt 00:06:46]} Nxe5 {[%clk
01:07:32]} {[%emt 00:04:06]} 14. Nxe5 {[%clk 00:54:36]} {[%emt 00:00:09]} bxc3
{[%clk 01:00:26]} {[%emt 00:07:37]} 15. bxc3 {[%clk 00:54:53]} {[%emt
00:00:13]} Bxe5 {[%clk 00:56:57]} {[%emt 00:03:58]} 16. Bf4 {[%clk 00:51:57]}
{[%emt 00:03:26]} Ne7 {[%clk 00:54:06]} {[%emt 00:03:21]} 17. Bxe5 {[%clk
00:48:34]} {[%emt 00:03:54]} dxe5 {[%clk 00:53:58]} {[%emt 00:00:38]} 18. Qg5
{[%clk 00:41:54]} {[%emt 00:07:10]} Nc6 {[%clk 00:54:11]} {[%emt 00:00:17]} 19.
Ne3 {[%clk 00:36:21]} {[%emt 00:06:03]} Qd8 {[%clk 00:53:51]} {[%emt 00:00:50]}
20. Qxd8+ {[%clk 00:36:41]} {[%emt 00:00:09]} Rxd8 {[%clk 00:53:55]} {[%emt
00:00:27]} 21. Rb1 {[%clk 00:26:57]} {[%emt 00:10:14]} Bc8 {[%clk 00:52:01]}
{[%emt 00:02:23]} 22. Nd5 {[%clk 00:26:03]} {[%emt 00:01:24]} Ne7 {[%clk
00:41:43]} {[%emt 00:10:48]} 23. Rb5 {[%clk 00:22:50]} {[%emt 00:03:43]} Nxd5
{[%clk 00:38:16]} {[%emt 00:03:58]} 24. exd5 {[%clk 00:23:04]} {[%emt
00:00:16]} Ba6 {[%clk 00:37:48]} {[%emt 00:00:58]} 25. Rxc5 {[%clk 00:23:26]}
{[%emt 00:00:08]} Bxd3 {[%clk 00:37:52]} {[%emt 00:00:26]} 26. Kd2 {[%clk
00:20:28]} {[%emt 00:03:28]} Bf5 {[%clk 00:33:08]} {[%emt 00:05:13]} 27. Re1
{[%clk 00:16:46]} {[%emt 00:04:13]} f6 {[%clk 00:30:58]} {[%emt 00:02:39]} 28.
Be4 {[%clk 00:16:25]} {[%emt 00:00:51]} Bxh3 {[%clk 00:28:42]} {[%emt
00:02:47]} 29. Bxg6+ {[%clk 00:16:32]} {[%emt 00:00:22]} Ke7 {[%clk 00:28:34]}
{[%emt 00:00:38]} 30. Bd3 {[%clk 00:08:02]} {[%emt 00:09:01]} Rd7 {[%clk
00:21:29]} {[%emt 00:07:36]} 31. c4 {[%clk 00:07:22]} {[%emt 00:01:10]} Rb7
{[%clk 00:20:31]} {[%emt 00:01:28]} 32. Kc3 {[%clk 00:06:27]} {[%emt 00:01:25]}
Rg8 {[%clk 00:19:48]} {[%emt 00:01:13]} 33. Re3 {[%clk 00:06:38]} {[%emt
00:00:20]} Bd7 {[%clk 00:19:46]} {[%emt 00:00:31]} 34. Ra5 {[%clk 00:06:45]}
{[%emt 00:00:23]} Kd8 {[%clk 00:11:22]} {[%emt 00:08:53]} 35. Ra6 {[%clk
00:07:01]} {[%emt 00:00:15]} f5 {[%clk 00:11:14]} {[%emt 00:00:38]} 36. Rxe5
{[%clk 00:03:39]} {[%emt 00:03:52]} Rxg3 {[%clk 00:11:03]} {[%emt 00:00:41]} 37.
Rh6 {[%clk 00:03:19]} {[%emt 00:00:50]} Rb1 {[%clk 00:10:50]} {[%emt 00:00:43]}
38. d6 {[%clk 00:02:23]} {[%emt 00:01:26]} Kc8 {[%clk 00:04:47]} {[%emt
00:06:32]} 39. Rc5+ {[%clk 00:02:13]} {[%emt 00:00:40]} Kb7 {[%clk 00:03:54]}
{[%emt 00:01:24]} 40. Rc7+ {[%clk 00:01:18]} {[%emt 00:01:25]} Ka6 {[%clk
00:03:32]} {[%emt 00:00:53]} 41. c5+ {[%clk 00:00:32]} {[%emt 00:01:15]} Bb5
{[%clk 00:03:50]} {[%emt 00:00:12]} 42. d7+ {[%clk 00:00:57]} {[%emt 00:00:05]}
1-0

[Event "Elitserien 2019/2020, round 7-9"]
[Site "Elite stadshotellet, Kungsgatan 6, Vaxjo, Sweden"]
[Date "2020.10.18"]
[Round "3.9"]
[White "Pantzar, Milton"]
[Black "Lundin, Jan"]
[Result "1-0"]
[TimeControl "90 minutes for 40 moves + 30 minutes for the rest of the game + 30 seconds per move from move one."]
[WhiteTitle "IM"]
[BlackTitle "FM"]
[WhiteFideId "1721003"]
[BlackFideId "1706896"]
[WhiteElo "2406"]
[BlackElo "2350"]

1. d4 {[%clk 01:30:57]} {[%emt 00:00:02]} d5 {[%clk 01:26:23]} {[%emt
00:04:37]} 2. c4 {[%clk 01:31:16]} {[%emt 00:00:10]} e5 {[%clk 01:24:44]}
{[%emt 00:02:11]} 3. dxe5 {[%clk 01:31:00]} {[%emt 00:00:43]} d4 {[%clk
01:25:10]} {[%emt 00:00:07]} 4. Nf3 {[%clk 01:31:11]} {[%emt 00:00:19]} Nc6
{[%clk 01:25:34]} {[%emt 00:00:06]} 5. g3 {[%clk 01:29:40]} {[%emt 00:02:01]}
Nge7 {[%clk 01:25:54]} {[%emt 00:00:10]} 6. Bg2 {[%clk 01:15:39]} {[%emt
00:14:31]} Ng6 {[%clk 01:26:09]} {[%emt 00:00:14]} 7. Bg5 {[%clk 01:12:48]}
{[%emt 00:03:21]} Qd7 {[%clk 01:18:52]} {[%emt 00:07:48]} 8. O-O {[%clk
01:11:00]} {[%emt 00:02:18]} h6 {[%clk 01:19:14]} {[%emt 00:00:07]} 9. Bf4
{[%clk 00:59:06]} {[%emt 00:12:24]} Nxf4 {[%clk 01:16:03]} {[%emt 00:03:41]} 10.
gxf4 {[%clk 00:59:33]} {[%emt 00:00:03]} g5 {[%clk 01:15:47]} {[%emt 00:00:47]}
11. Nbd2 {[%clk 00:59:01]} {[%emt 00:01:03]} gxf4 {[%clk 00:56:58]} {[%emt
00:19:19]} 12. Ne4 {[%clk 00:58:56]} {[%emt 00:00:34]} Bg7 {[%clk 00:53:10]}
{[%emt 00:04:19]} 13. Kh1 {[%clk 00:53:06]} {[%emt 00:06:19]} Qe7 {[%clk
00:40:05]} {[%emt 00:13:35]} 14. b4 {[%clk 00:42:18]} {[%emt 00:11:19]} Nxe5
{[%clk 00:36:24]} {[%emt 00:04:10]} 15. Nxe5 {[%clk 00:41:44]} {[%emt
00:01:05]} Bxe5 {[%clk 00:36:25]} {[%emt 00:00:29]} 16. Bf3 {[%clk 00:39:43]}
{[%emt 00:02:32]} Qxb4 {[%clk 00:34:24]} {[%emt 00:02:30]} 17. Rb1 {[%clk
00:36:41]} {[%emt 00:03:32]} Qxc4 {[%clk 00:33:34]} {[%emt 00:01:20]} 18. Rg1
{[%clk 00:35:26]} {[%emt 00:01:44]} Kf8 {[%clk 00:25:42]} {[%emt 00:08:22]} 19.
Rc1 {[%clk 00:34:22]} {[%emt 00:01:34]} Qb4 {[%clk 00:23:10]} {[%emt 00:03:01]}
20. Nc5 {[%clk 00:31:13]} {[%emt 00:03:40]} Rb8 {[%clk 00:16:27]} {[%emt
00:07:13]} 21. Qc2 {[%clk 00:28:01]} {[%emt 00:03:42]} Bd6 {[%clk 00:10:34]}
{[%emt 00:06:23]} 22. Qe4 {[%clk 00:26:27]} {[%emt 00:02:04]} b6 {[%clk
00:06:00]} {[%emt 00:05:03]} 23. Nd3 {[%clk 00:25:20]} {[%emt 00:01:37]} Qa4
{[%clk 00:05:37]} {[%emt 00:00:53]} 24. Rc6 {[%clk 00:08:58]} {[%emt 00:16:52]}
Bb7 {[%clk 00:04:09]} {[%emt 00:01:58]} 25. Ne5 {[%clk 00:09:16]} {[%emt
00:00:13]} Bxc6 {[%clk 00:03:55]} {[%emt 00:00:44]} 26. Nxc6 {[%clk 00:09:21]}
{[%emt 00:00:25]} Re8 {[%clk 00:03:36]} {[%emt 00:00:50]} 27. Qf5 {[%clk
00:09:28]} {[%emt 00:00:23]} Rg8 {[%clk 00:01:26]} {[%emt 00:02:40]} 28. Bd5
{[%clk 00:06:19]} {[%emt 00:03:39]} Re6 {[%clk 00:00:50]} {[%emt 00:01:06]} 29.
Rxg8+ {[%clk 00:04:04]} {[%emt 00:02:44]} Kxg8 {[%clk 00:01:16]} {[%emt
00:00:05]} 30. Nd8 {[%clk 00:04:23]} {[%emt 00:00:11]} Qd1+ {[%clk 00:00:36]}
{[%emt 00:01:10]} 31. Kg2 {[%clk 00:04:51]} {[%emt 00:00:01]} Qxe2 {[%clk
00:00:39]} {[%emt 00:00:27]} 32. Qxf7+ {[%clk 00:02:31]} {[%emt 00:02:51]} Kh8
{[%clk 00:01:05]} {[%emt 00:00:04]} 33. Qxe6 {[%clk 00:02:12]} {[%emt
00:00:49]} Qxe6 {[%clk 00:01:10]} {[%emt 00:00:25]} 34. Nxe6 {[%clk 00:02:32]}
{[%emt 00:00:10]} c5 {[%clk 00:01:16]} {[%emt 00:00:24]} 35. Bc4 {[%clk
00:02:14]} {[%emt 00:00:48]} f3+ {[%clk 00:01:11]} {[%emt 00:00:35]} 36. Kxf3
{[%clk 00:02:28]} {[%emt 00:00:16]} Bxh2 {[%clk 00:01:34]} {[%emt 00:00:07]} 37.
Kg4 {[%clk 00:02:22]} {[%emt 00:00:35]} Kh7 {[%clk 00:01:41]} {[%emt 00:00:24]}
38. Kh5 {[%clk 00:02:31]} {[%emt 00:00:22]} Be5 {[%clk 00:01:09]} {[%emt
00:01:01]} 39. f3 {[%clk 00:02:24]} {[%emt 00:00:37]} Bf6 {[%clk 00:01:27]}
{[%emt 00:00:13]} 40. Bd3+ {[%clk 00:02:05]} {[%emt 00:00:49]} Kg8 {[%clk
00:01:49]} {[%emt 00:00:07]} 41. Kg6 {[%clk 00:02:20]} {[%emt 00:00:16]} Be5
{[%clk 00:01:28]} {[%emt 00:00:51]} 42. Bc4 {[%clk 00:01:28]} {[%emt 00:01:22]}
h5 {[%clk 00:01:15]} {[%emt 00:00:43]} 43. Nxc5+ {[%clk 00:29:35]} {[%emt
00:02:24]} 1-0